bitfinex/quotes_SOLUSD_20250724
["timestamp","ask_amount","ask_price","bid_price","bid_amount"]
[1753321690927,0.1,190.65,190.62,28.65476557]
[1753321690928,0.1,190.65,190.64,16.78468397]
[1753321691255,0.03,190.67,190.64,29.29667129]
[1753321691428,42.31943844,190.78,190.67,16.78468397]
[1753321691621,42.31943844,190.78,190.67,22.20412241]
[1753321691820,26.0,190.75,190.67,22.88412241]
[1753321692054,26.0,190.74,190.67,59.78412241]
[1753321692221,5.41943844,190.77,190.67,59.78412241]
[1753321692635,26.0,190.74,190.67,65.02878596]
[1753321695858,1e-08,190.68,190.67,67.15695231]
[1753321696349,1e-08,190.68,190.67,155.35695231]
[1753321696531,1e-08,190.68,190.67,154.83248596]
[1753321700034,1e-08,190.68,190.67,154.89248596]
[1753321715659,0.03,190.72,190.71,22.20412241]
[1753321715897,0.03,190.72,190.71,59.56847876]
[1753321716252,0.03,190.72,190.71,60.22847876]
[1753321716856,0.03,190.72,190.71,59.04412241]
[1753321717469,0.03,190.72,190.71,64.28768593]
[1753321717886,0.03,190.72,190.71,47.50300196]
[1753321718368,0.03,190.72,190.71,64.94768593]
[1753321721079,0.03,190.76,190.75,5.41943844]
[1753321721264,0.03,190.76,190.75,42.25943844]
[1753321721855,0.03,190.76,190.75,48.16190239]
[1753321722774,0.03,190.76,190.75,64.94658636]
[1753321725970,0.1,190.8,190.76,16.78468397]
[1753321726179,0.1,190.8,190.79,22.20412241]
[1753321726364,0.1,190.8,190.79,147.24412241]
[1753321726556,0.1,190.8,190.79,153.14548726]
[1753321727183,1e-08,190.8,190.79,158.5649257]
[1753321729182,1e-08,190.8,190.79,153.14548726]
[1753321733991,1e-08,190.8,190.79,98.86080329]
[1753321734166,1e-08,190.8,190.79,47.48080329]
[1753321734371,0.72000001,190.8,190.79,36.82]
[1753321735185,0.72000001,190.8,190.79,42.06136485]
[1753321738168,1e-08,190.8,190.79,47.48080329]
[1753321738496,1e-08,190.8,190.79,48.17080329]
[1753321739371,1e-08,190.8,190.79,153.15548726]
[1753321741692,1e-08,190.8,190.79,152.46548726]
[1753321743096,1e-08,190.8,190.79,153.15548726]
[1753321743310,1e-08,190.8,190.79,152.46548726]
[1753321744195,1e-08,190.8,190.79,153.15548726]
[1753321747603,1e-08,190.8,190.79,158.5749257]
[1753321747912,1e-08,190.8,190.79,184.5749257]
[1753321750006,0.03,190.84,190.8,16.78468397]
[1753321750215,0.03,190.84,190.83,22.20412241]
[1753321750401,0.03,190.84,190.83,59.00412241]
[1753321750722,0.03,190.84,190.83,59.69412241]
[1753321751608,0.75,190.84,190.83,5.2402662]
[1753321751923,0.03,190.84,190.83,42.0402662]
[1753321752222,0.03,190.84,190.83,64.93438861]
[1753321752718,0.03,190.84,190.83,64.24438861]
[1753321754121,0.03,190.84,190.83,64.93438861]
[1753321754504,0.03,190.84,190.83,64.24438861]
[1753321754902,0.75,190.84,190.83,42.0402662]
[1753321755200,0.75,190.84,190.81,5.24057749]
[1753321755424,0.75,190.84,190.82,36.8]
[1753321755425,6.16943844,190.84,190.82,36.8]
[1753321755726,0.72,190.83,190.82,36.8]
[1753321756428,0.72,190.83,190.82,42.04054082]
[1753321757905,0.72,190.83,190.82,36.8]
[1753321761830,0.03,190.84,190.82,47.45988335]
[1753321762016,0.03,190.84,190.83,5.41943844]
[1753321762424,0.03,190.84,190.83,6.10943844]
[1753321763417,0.03,190.84,190.83,10.65970464]
[1753321763743,0.03,190.84,190.83,11.34970464]
[1753321763945,0.03,190.84,190.83,28.13438861]
[1753321766723,0.03,190.84,190.83,27.44438861]
[1753321767039,0.03,190.84,190.83,28.13438861]
[1753321768943,0.03,190.84,190.83,116.85841523]
[1753321769127,0.03,190.84,190.83,116.33438861]
[1753321769943,0.1,190.88,190.84,16.78468397]
[1753321770131,0.1,190.88,190.87,5.41943844]
[1753321770321,0.1,190.88,190.87,42.19943844]
[1753321770930,0.1,190.88,190.87,47.43860646]
[1753321771646,0.1,190.88,190.87,48.12860646]
[1753321771847,0.1,190.88,190.87,64.91329043]
[1753321772352,0.1,190.88,190.87,65.43720723]
[1753321773354,1e-08,190.88,190.87,186.00290723]
[1753321773530,1e-08,190.88,190.87,180.05955199]
[1753321773735,1e-08,190.88,190.87,185.47899043]
[1753321774460,1e-08,190.88,190.87,159.47899043]
[1753321776559,1e-08,190.88,190.87,154.05955199]
[1753321776723,1e-08,190.88,190.87,159.47899043]
[1753321777926,1e-08,190.88,190.87,122.69899043]
[1753321778153,1e-08,190.88,190.87,159.47899043]
[1753321778524,1e-08,190.88,190.87,185.47899043]
[1753321778725,1e-08,190.88,190.87,179.09329043]
[1753321778925,1e-08,190.88,190.87,27.44329043]
[1753321779125,0.70000001,190.88,190.87,5.23916802]
[1753321779326,1e-08,190.88,190.87,47.41860646]
[1753321779626,1e-08,190.88,190.87,58.78385199]
[1753321779826,1e-08,190.88,190.87,64.20329043]
[1753321780526,1e-08,190.88,190.87,64.89329043]
[1753321782554,1e-08,190.88,190.87,65.41720723]
[1753321785756,1e-08,190.88,190.87,179.61720723]
[1753321785967,1e-08,190.88,190.87,179.09329043]
[1753321786541,0.03,190.92,190.91,42.78468397]
[1753321786751,0.03,190.92,190.91,84.96412241]
[1753321787057,0.03,190.92,190.91,86.17792943]
[1753321787467,0.7,190.98,190.95,5.41943844]
[1753321787776,0.7,191.0,190.97,5.41943844]
[1753321787937,5.41943844,191.04,190.98,42.17943844]
[1753321788263,0.7,191.03,191.0,5.41943844]
[1753321788569,0.7,191.03,190.98,36.76]
[1753321788570,0.7,191.03,191.01,36.76]
[1753321788865,0.7,191.03,191.02,36.76]
[1753321789366,6.11943844,191.03,191.01,36.76]
[1753321789566,0.7,191.02,191.01,36.76]
[1753321790154,6.11943844,191.02,190.95,16.78468397]
[1753321790475,5.41943844,190.96,190.92,5.23779593]
[1753321790652,5.41943844,190.94,190.9,5.23810136]
[1753321791019,0.7,190.93,190.91,36.76]
[1753321791279,0.71,190.92,190.91,36.76]
[1753321791450,6.12943844,190.92,190.87,0.06]
[1753321791651,5.41943844,190.9,190.88,36.76]
[1753321791848,0.71,190.89,190.88,36.76]
[1753321792754,6.12943844,190.89,190.88,36.76]
[1753321793275,0.71,190.93,190.89,5.2386191]
[1753321793573,0.71,190.93,190.9,36.76]
[1753321793574,0.71,190.92,190.9,36.76]
[1753321793768,0.71,190.91,190.9,36.76]
[1753321795062,0.71,190.91,190.9,41.99834468]
[1753321796780,0.71,190.91,190.9,36.76]
[1753321797277,0.71,190.91,190.9,41.99834468]
[1753321799460,0.71,190.91,190.9,36.76]
[1753321801862,6.12943844,190.91,190.87,0.06]
[1753321802066,0.71,190.9,190.87,5.29912643]
[1753321802290,0.71,190.95,190.89,5.41943844]
[1753321802493,0.71,190.95,190.9,47.417535]
[1753321802696,6.12943844,190.95,190.9,41.99809656]
[1753321802899,5.41943844,190.93,190.9,41.99809656]
[1753321803108,0.71,190.92,190.9,41.99809656]
[1753321803294,5.41943844,190.93,190.9,41.99809656]
[1753321803476,0.71,190.92,190.9,41.99809656]
[1753321804180,6.12943844,190.94,190.9,41.99809656]
[1753321804511,0.71,190.93,190.9,41.99809656]
[1753321804901,5.44943844,190.96,190.9,47.417535]
[1753321805101,0.71,190.95,190.91,5.41943844]
[1753321805401,0.71,190.95,190.92,36.76]
[1753321806176,0.71,190.94,190.92,36.76]
[1753321806397,5.41943844,190.95,190.92,36.76]
[1753321806606,0.71,190.95,190.92,36.76]
[1753321807418,0.71,190.95,190.92,41.99752359]
[1753321807978,0.71,190.94,190.92,41.99752359]
[1753321809189,0.03,190.96,190.92,41.99752359]
[1753321809391,0.71,190.93,190.92,41.99752359]
[1753321810325,0.71,190.93,190.92,36.76]
[1753321812512,5.41943844,190.95,190.92,36.76]
[1753321812702,0.71,190.94,190.92,36.76]
[1753321813215,5.41943844,190.95,190.92,36.76]
[1753321813553,6.12943844,190.95,190.92,36.76]
[1753321813812,0.71,190.94,190.92,36.76]
[1753321814003,6.12943844,190.94,190.88,88.2]
[1753321814178,6.12943844,190.93,190.9,36.76]
[1753321814384,0.71,190.92,190.88,124.96]
[1753321814607,5.41943844,190.93,190.88,36.76]
[1753321814813,0.71,190.91,190.88,36.76]
[1753321815014,0.71,190.91,190.88,41.99885908]
[1753321816198,6.12943844,190.93,190.88,41.99885908]
[1753321816406,5.41943844,190.93,190.88,41.99885908]
[1753321816713,0.71,190.92,190.88,41.99885908]
[1753321816912,0.71,190.92,190.88,48.11829752]
[1753321817721,0.71,190.92,190.88,47.41829752]
[1753321817921,0.71,190.91,190.88,47.41829752]
[1753321819800,6.12943844,190.93,190.88,47.41829752]
[1753321820018,6.12943844,190.93,190.88,48.11829752]
[1753321820328,0.71,190.93,190.89,0.7]
[1753321820520,6.12943844,190.95,190.89,6.11943844]
[1753321820694,6.12943844,190.95,190.9,37.46]
[1753321820902,5.44943844,190.96,190.91,0.7]
[1753321821109,6.15943844,190.96,190.91,5.41943844]
[1753321821400,0.73,190.96,190.91,5.41943844]
[1753321821597,0.73,190.96,190.92,36.76]
[1753321822219,0.73,190.96,190.92,42.68759276]
[1753321822403,0.03,190.96,190.92,42.68759276]
[1753321822610,0.03,190.96,190.93,0.69]
[1753321823642,0.03,190.96,190.92,47.4170312]
[1753321823814,0.03,190.96,190.93,0.69]
[1753321824511,0.03,190.96,190.93,5.92748093]
[1753321825316,0.03,190.96,190.93,5.23748093]
[1753321825721,0.03,190.96,190.94,0.69]
[1753321825929,0.03,190.96,190.94,5.92724447]
[1753321827727,0.03,190.96,190.95,0.69]
[1753321827934,0.03,190.96,190.95,5.92697302]
[1753321828621,0.03,190.96,190.95,11.34641146]
[1753321829039,0.03,190.96,190.95,48.08641146]
[1753321833227,0.03,190.96,190.95,153.07109543]
[1753321835015,4.14943844,191.03,190.96,16.78468397]
[1753321835219,4.14943844,191.03,190.98,5.41943844]
[1753321836425,31.26451844,191.04,190.98,10.65539102]
[1753321836621,5.41943844,191.03,190.98,11.34539102]
[1753321837121,0.03,191.04,190.99,22.20412241]
[1753321837341,0.03,191.04,191.01,5.41943844]
[1753321837727,0.03,191.04,191.02,0.69]
[1753321838341,0.03,191.04,191.03,0.69]
[1753321838548,0.03,191.04,191.03,11.34421831]
[1753321838924,0.03,191.04,191.03,64.86890228]
[1753321839446,1e-08,191.04,191.03,64.86890228]
[1753321839653,1e-08,191.04,191.03,65.39238026]
[1753321841552,1e-08,191.04,191.03,22.70946384]
[1753321841759,1e-08,191.04,191.03,64.84890228]
[1753321842139,1e-08,191.04,191.03,67.50835075]
[1753321850461,1e-08,191.04,191.03,68.03182873]
[1753321851264,1e-08,191.04,191.03,156.23182873]
[1753321851565,1e-08,191.04,191.03,155.70835075]
[1753321853552,7.36283844,191.16,191.07,16.78468397]
[1753321853860,1.9434,191.16,191.12,5.41943844]
[1753321854065,0.4,191.19,191.15,5.41943844]
[1753321854263,12.77888385,191.21,191.13,37.4]
[1753321854264,10.64956719,191.2,191.14,5.41943844]
[1753321854643,5.41943844,191.2,191.14,5.41943844]
[1753321855252,10.64961316,191.2,191.14,5.41943844]
[1753321856441,5.41943844,191.17,191.13,36.7]
[1753321856642,5.41943844,191.16,191.11,10.652027]
[1753321856844,5.41943844,191.16,191.12,36.7]
[1753321857472,5.41943844,191.17,191.12,36.7]
[1753321858368,5.23044155,191.19,191.13,0.68]
[1753321858592,5.41943844,191.18,191.13,0.68]
[1753321858767,5.23044155,191.19,191.13,0.68]
[1753321858963,5.41943844,191.18,191.12,47.35166016]
[1753321859269,31.23015818,191.2,191.13,6.09943844]
[1753321859572,31.23015818,191.2,191.13,10.65123641]
[1753321859765,5.41943844,191.18,191.13,11.33123641]
[1753321860774,5.41943844,191.19,191.14,5.41943844]
[1753321861150,31.23015818,191.2,191.13,5.91179797]
[1753321861351,5.41943844,191.19,191.13,11.33123641]
[1753321862073,31.23015818,191.2,191.13,11.33123641]
[1753321862367,36.64959662,191.2,191.14,10.65114845]
[1753321862571,5.41943844,191.21,191.16,5.41943844]
[1753321862768,8.17839204,191.22,191.17,0.68]
[1753321862963,8.17839204,191.22,191.18,0.68]
[1753321863368,8.17839204,191.22,191.16,6.09943844]
[1753321863568,5.44943844,191.22,191.17,5.23094627]
[1753321863764,5.44943844,191.22,191.17,5.91094627]
[1753321864974,0.03,191.22,191.17,10.65038471]
[1753321865360,0.03,191.22,191.17,11.33038471]
[1753321865875,5.44943844,191.22,191.17,0.68]
[1753321866104,5.41943844,191.19,191.15,36.7]
[1753321866374,5.41943844,191.2,191.15,36.7]
[1753321866577,5.41943844,191.2,191.15,37.38]
[1753321867276,5.41943844,191.2,191.15,42.11943844]
[1753321867474,5.41943844,191.2,191.16,0.68]
[1753321867868,10.64964053,191.2,191.15,42.11943844]
[1753321868076,10.64964053,191.2,191.15,36.7]
[1753321868268,5.23020209,191.2,191.15,36.7]
[1753321868471,5.41943844,191.18,191.15,36.7]
[1753321869267,5.41943844,191.17,191.12,48.03170542]
[1753321870459,5.41943844,191.17,191.13,0.68]
[1753321871378,10.65044181,191.17,191.13,0.68]
[1753321871679,10.65044181,191.17,191.08,0.68]
[1753321871680,5.41943844,191.14,191.08,0.68]
[1753321871979,5.41943844,191.14,191.08,42.77943844]
[1753321872159,5.41943844,191.15,191.1,5.41943844]
[1753321872362,5.41943844,191.16,191.11,5.91242873]
[1753321872660,5.41943844,191.16,191.12,0.68]
[1753321872857,5.41943844,191.16,191.13,0.68]
[1753321873059,5.41943844,191.16,191.1,10.65226601]
[1753321873281,5.41943844,191.16,191.11,0.68]
[1753321873600,5.41943844,191.16,191.12,0.68]
[1753321874981,5.41943844,191.16,191.12,5.23224764]
[1753321875156,18.24030148,191.23,191.14,5.41943844]
[1753321875362,5.41943844,191.19,191.13,6.09943844]
[1753321876381,5.41943844,191.19,191.13,10.65129306]
[1753321876563,5.41943844,191.19,191.14,6.09943844]
[1753321876768,5.41943844,191.21,191.15,6.09943844]
[1753321877081,5.41943844,191.21,191.16,0.68]
[1753321877276,5.41943844,191.21,191.17,0.68]
[1753321878176,10.64932142,191.21,191.17,0.68]
[1753321878565,10.64932142,191.21,191.15,11.33077692]
[1753321878987,10.64932142,191.21,191.12,124.94]
[1753321878988,5.41943844,191.17,191.12,88.94]
[1753321879164,5.22988298,191.21,191.12,42.65227277]
[1753321879363,5.41943844,191.17,191.12,42.65227277]
[1753321879664,5.41943844,191.17,191.13,0.68]
[1753321879872,5.41943844,191.17,191.12,47.39171121]
[1753321880184,5.41943844,191.17,191.12,36.74]
[1753321880383,5.41943844,191.16,191.12,37.42]
[1753321881100,5.23100159,191.17,191.12,37.42]
[1753321881275,5.41943844,191.16,191.12,37.42]
[1753321881681,5.41943844,191.16,191.12,42.65228645]
[1753321881982,5.41943844,191.17,191.13,5.92195971]
[1753321882175,5.41943844,191.17,191.14,0.69]
[1753321882372,5.41943844,191.17,191.13,5.23195971]
[1753321882568,5.41943844,191.17,191.15,0.69]
[1753321882888,5.41943844,191.18,191.14,0.69]
[1753321883469,5.41943844,191.17,191.14,0.69]
[1753321884389,5.41943844,191.17,191.13,5.23203701]
[1753321884586,5.41943844,191.17,191.14,0.69]
[1753321887588,5.23048463,191.19,191.14,0.69]
[1753321887772,5.41943844,191.17,191.14,5.23171837]
[1753321887973,5.41943844,191.17,191.15,0.69]
[1753321888494,5.41943844,191.17,191.14,5.23171837]
[1753321888694,5.41943844,191.17,191.15,0.69]
[1753321889287,5.41943844,191.17,191.14,5.23171837]
[1753321889479,33.95897876,191.21,191.15,0.69]
[1753321889678,5.41943844,191.18,191.15,0.69]
[1753321889991,5.41943844,191.18,191.16,0.69]
[1753321890192,28.72894751,191.21,191.17,0.69]
[1753321890375,5.41943844,191.2,191.17,0.69]
[1753321890578,5.41943844,191.2,191.18,0.69]
[1753321890781,5.44943844,191.22,191.19,0.69]
[1753321890968,5.44943844,191.22,191.2,0.69]
[1753321891384,0.03,191.22,191.21,0.69]
[1753321892193,5.44943844,191.22,191.17,42.60089674]
[1753321892488,5.41943844,191.2,191.17,41.91089674]
[1753321892695,5.41943844,191.21,191.18,0.69]
[1753321892996,5.41943844,191.21,191.18,5.92066831]
[1753321893573,5.41943844,191.21,191.18,0.69]
[1753321894695,5.41943844,191.21,191.17,5.2309154]
[1753321894884,5.41943844,191.21,191.17,5.9209154]
[1753321895376,0.03,191.22,191.17,5.9209154]
[1753321895583,5.41943844,191.21,191.18,0.69]
[1753321897108,5.41943844,191.21,191.18,5.92065961]
[1753321897608,5.44943844,191.22,191.19,0.69]
[1753321898295,5.44943844,191.22,191.18,5.23065961]
[1753321898481,0.03,191.22,191.18,5.92065961]
[1753321899177,5.44943844,191.22,191.18,0.69]
[1753321899790,0.03,191.22,191.17,47.33034598]
[1753321899995,5.41943844,191.31,191.23,16.78468397]
[1753321900178,1.086,191.32,191.24,6.10943844]
[1753321900179,5.41943844,191.3,191.24,6.10943844]
[1753321900390,1.116,191.32,191.25,5.91875816]
[1753321900590,5.41943844,191.3,191.25,5.91875816]
[1753321900796,5.41943844,191.3,191.26,0.69]
[1753321900980,5.41943844,191.3,191.27,0.69]
[1753321901384,5.41943844,191.3,191.28,0.69]
[1753321901591,0.03,191.29,191.25,10.6481966]
[1753321902099,0.03,191.29,191.26,0.69]
[1753321902482,0.03,191.29,191.27,0.69]
[1753321903089,0.03,191.29,191.28,0.69]
[1753321905011,0.03,191.29,191.28,11.33737654]
[1753321905815,0.03,191.29,191.28,0.69]
[1753321906104,0.03,191.29,191.27,41.88815108]
[1753321906105,0.03,191.29,191.27,36.66]
[1753321906305,0.03,191.29,191.27,37.35]
[1753321906508,0.03,191.29,191.28,0.69]
[1753321906684,0.03,191.29,191.27,42.57815413]
[1753321907383,0.03,191.29,191.27,37.35]
[1753321907584,0.03,191.29,191.27,42.57811964]
[1753321908310,0.03,191.29,191.28,0.69]
[1753321911011,0.03,191.29,191.27,41.88811964]
[1753321911312,5.41943844,191.28,191.24,36.66]
[1753321911505,5.41943844,191.27,191.24,41.88897773]
[1753321911706,5.41943844,191.27,191.25,0.71]
[1753321912287,0.03,191.29,191.25,0.71]
[1753321912288,5.41943844,191.28,191.25,0.71]
[1753321912812,5.41943844,191.28,191.26,0.71]
[1753321913890,0.03,191.29,191.27,0.71]
[1753321914094,5.44943844,191.29,191.27,0.71]
[1753321914801,5.44943844,191.29,191.26,5.22846654]
[1753321915004,5.44943844,191.29,191.26,0.71]
[1753321915894,5.44943844,191.29,191.27,0.71]
[1753321916092,5.44943844,191.29,191.25,5.93875816]
[1753321916295,5.44943844,191.29,191.26,0.71]
[1753321917318,5.44943844,191.29,191.26,5.93841977]
[1753321917916,0.03,191.29,191.27,0.71]
[1753321918403,0.03,191.29,191.27,37.37]
[1753321918592,0.03,191.29,191.27,36.66]
[1753321918787,0.03,191.29,191.27,37.37]
[1753321918988,0.03,191.29,191.28,0.71]
[1753321919595,5.44943844,191.29,191.27,36.66]
[1753321920217,0.03,191.29,191.27,41.88817596]
[1753321920427,5.44943844,191.29,191.27,36.66]
[1753321920595,5.41943844,191.28,191.27,36.66]
[1753321920790,5.44943844,191.28,191.23,37.37]
[1753321920997,5.41943844,191.25,191.23,36.66]
[1753321921298,5.41943844,191.25,191.23,41.8892771]
[1753321921505,5.41943844,191.26,191.23,42.5992771]
[1753321922013,0.03,191.29,191.24,0.71]
[1753321922198,5.41943844,191.28,191.24,0.71]
[1753321922515,5.41943844,191.27,191.24,0.71]
[1753321923517,5.41943844,191.27,191.24,5.93899904]
[1753321923710,5.41943844,191.27,191.24,5.22899904]
[1753321923905,0.03,191.29,191.25,0.71]
[1753321924100,5.41943844,191.28,191.25,0.71]
[1753321924414,5.41943844,191.26,191.22,5.99947461]
[1753321924595,5.41943844,191.25,191.22,5.99947461]
[1753321925901,5.41943844,191.24,191.22,5.99947461]
[1753321926504,5.41943844,191.25,191.22,5.99947461]
[1753321926712,5.28774293,191.29,191.22,5.99947461]
[1753321926713,5.41943844,191.28,191.23,0.71]
[1753321927300,5.41943844,191.28,191.24,5.22903158]
[1753321927699,5.41943844,191.28,191.25,0.71]
[1753321927899,5.41943844,191.28,191.24,41.88903158]
[1753321928116,5.41943844,191.28,191.26,0.71]
[1753321928320,5.41943844,191.28,191.27,0.71]
[1753321929108,5.41943844,191.28,191.26,5.22842511]
[1753321929423,5.41943844,191.27,191.26,5.22842511]
[1753321929608,5.41943844,191.27,191.22,0.06]
[1753321929919,5.41943844,191.27,191.23,5.93930502]
[1753321930120,5.41943844,191.27,191.24,0.71]
[1753321930326,5.41943844,191.27,191.25,0.71]
[1753321931019,0.03,191.29,191.24,5.22889054]
[1753321931199,5.41943844,191.27,191.24,5.93889054]
[1753321931600,5.41943844,191.27,191.24,5.93900624]
[1753321931821,0.03,191.29,191.25,37.37]
[1753321932122,0.03,191.29,191.26,0.71]
[1753321932421,0.03,191.29,191.27,5.22821142]
[1753321932718,0.03,191.29,191.28,36.66]
[1753321933026,0.03,191.29,191.28,37.37]
[1753321934422,0.03,191.29,191.28,42.5979381]
[1753321935930,0.03,191.29,191.28,37.37]
[1753321936221,0.03,191.29,191.27,5.22814298]
[1753321936424,0.03,191.29,191.28,37.37]
[1753321937510,0.03,191.29,191.28,42.5979381]
[1753321939333,0.03,191.29,191.28,36.66]
[1753321939510,0.03,191.29,191.28,41.8879381]
[1753321940121,0.03,191.29,191.28,42.5979381]
[1753321941011,5.44943844,191.29,191.28,5.2279381]
[1753321941514,0.03,191.29,191.28,5.2279381]
[1753321943419,0.03,191.29,191.27,5.22821142]
[1753321943621,0.03,191.29,191.27,5.89821142]
[1753321944623,0.03,191.29,191.27,5.22821142]
[1753321945129,0.03,191.29,191.27,5.89821142]
[1753321946113,0.03,191.29,191.28,0.67]
[1753321946928,0.03,191.29,191.28,5.8979381]
[1753321949051,0.03,191.29,191.27,5.22821142]
[1753321949218,5.44943844,191.29,191.27,5.22821142]
[1753321949416,0.03,191.29,191.27,5.22821142]
[1753321949638,0.03,191.29,191.28,0.67]
[1753321951220,5.44943844,191.29,191.22,5.47943844]
[1753321951528,5.44943844,191.29,191.23,42.53930502]
[1753321951529,5.41943844,191.27,191.23,42.53930502]
[1753321951920,5.41943844,191.27,191.24,0.67]
[1753321953933,5.41943844,191.27,191.24,5.89902448]
[1753321954455,5.41943844,191.28,191.24,5.89902448]
[1753321954952,0.03,191.29,191.25,6.08943844]
[1753321955247,0.03,191.29,191.26,36.64]
[1753321955451,0.03,191.29,191.26,37.31]
[1753321955650,0.03,191.29,191.27,0.67]
[1753321956851,0.03,191.29,191.28,0.67]
[1753321958243,0.03,191.29,191.28,6.08943844]
[1753321958841,0.03,191.29,191.28,5.8979381]
[1753321961656,0.4653,191.32,191.28,5.8979381]
[1753321961831,0.4653,191.32,191.29,5.89757479]
[1753321962463,0.4653,191.32,191.3,0.67]
[1753321963349,0.4653,191.32,191.29,5.22757479]
[1753321963680,5.88473844,191.32,191.29,5.89757479]
[1753321963864,5.88473844,191.32,191.29,0.67]
[1753321964032,0.4653,191.32,191.29,0.67]
[1753321964736,5.88473844,191.32,191.29,0.67]
[1753321965453,5.88473844,191.32,191.3,0.67]
[1753321965454,0.4653,191.32,191.3,0.67]
[1753321966251,0.4653,191.32,191.29,41.86762169]
[1753321966632,0.4653,191.32,191.29,42.53762169]
[1753321966848,5.41943844,191.31,191.27,5.22796894]
[1753321967047,5.41943844,191.31,191.28,36.64]
[1753321967552,5.41943844,191.29,191.25,88.2]
[1753321967730,5.41943844,191.29,191.25,0.67]
[1753321968131,5.41943844,191.29,191.26,0.67]
[1753321968347,5.41943844,191.29,191.25,5.22875067]
[1753321968543,5.41943844,191.29,191.25,5.89875067]
[1753321968741,5.25721838,191.31,191.25,5.89875067]
[1753321968742,5.41943844,191.31,191.26,6.08943844]
[1753321968940,5.91473844,191.32,191.27,0.67]
[1753321969138,5.91473844,191.32,191.27,37.31]
[1753321969341,5.41943844,191.31,191.27,36.64]
[1753321969544,5.41943844,191.31,191.28,0.67]
[1753321970049,5.41943844,191.31,191.28,5.89789519]
[1753321970259,5.41943844,191.3,191.27,41.86815934]
[1753321970429,5.41943844,191.3,191.27,36.64]
[1753321970633,5.41943844,191.29,191.27,36.64]
[1753321971133,5.41943844,191.29,191.25,0.68]
[1753321971327,5.41943844,191.29,191.24,5.22876922]
[1753321971328,5.41943844,191.27,191.24,41.86876922]
[1753321971750,5.41943844,191.27,191.24,42.54876922]
[1753321972051,0.4953,191.32,191.25,0.68]
[1753321972364,0.4953,191.32,191.25,6.09943844]
[1753321972663,5.41943844,191.31,191.26,0.68]
[1753321972868,0.4953,191.32,191.26,0.68]
[1753321973170,5.41943844,191.31,191.26,0.68]
[1753321974039,5.41943844,191.31,191.27,5.22821142]
[1753321974337,5.41943844,191.31,191.28,0.68]
[1753321975655,5.91473844,191.32,191.28,0.68]
[1753321976456,5.91473844,191.32,191.28,5.90788048]
[1753321977352,5.41943844,191.29,191.25,0.68]
[1753321977759,10.64712126,191.29,191.25,0.68]
[1753321977961,10.64712126,191.29,191.24,5.22890353]
[1753321978164,10.64712126,191.29,191.25,0.68]
[1753321978466,5.25730881,191.31,191.25,0.68]
[1753321978689,5.41943844,191.28,191.25,0.68]
[1753321980144,5.41943844,191.28,191.25,5.90866253]
[1753321980547,5.41943844,191.28,191.24,5.90894512]
[1753321980848,5.41943844,191.28,191.24,5.22894512]
[1753321981163,5.41943844,191.28,191.23,41.86926634]
[1753321981364,5.41943844,191.28,191.24,0.68]
[1753321981858,5.41943844,191.28,191.23,41.86926634]
[1753321982047,5.41943844,191.27,191.23,41.86926634]
[1753321982245,5.41943844,191.27,191.24,0.68]
[1753321982447,5.41943844,191.28,191.25,0.68]
[1753321982653,5.41943844,191.28,191.23,41.86926634]
[1753321982835,0.5253,191.32,191.24,0.68]
[1753321983042,5.91473844,191.32,191.26,5.41943844]
[1753321983250,5.91473844,191.32,191.27,0.68]
[1753321983543,5.41943844,191.31,191.28,0.68]
[1753321984166,5.41943844,191.31,191.29,0.68]
[1753321984369,5.91473844,191.32,191.29,0.68]
[1753321984755,5.91473844,191.32,191.26,10.64792322]
[1753321984756,5.91473844,191.32,191.3,0.68]
[1753321984939,5.91473844,191.32,191.27,0.68]